bitfinex/quotes_SOLUSD_20260309
["timestamp","ask_amount","ask_price","bid_price","bid_amount"]
[1773064436495,11.38118541,85.07,85.021,11.76180002]
[1773064436694,11.38118541,85.06,85.02,11.86188708]
[1773064436900,11.38118541,85.06,85.02,23.24307249]
[1773064437118,11.38118541,85.06,85.02,0.1]
[1773064437313,11.38118541,85.06,85.021,11.76180002]
[1773064437511,11.38118541,85.06,85.022,2.6808526]
[1773064437713,11.38118541,85.05,85.022,2.6808526]
[1773064438013,11.75675012,85.058,85.024,2.6808526]
[1773064438213,11.75675012,85.058,85.023,11.76152335]
[1773064438214,2.57843091,85.092,85.041,2.6808526]
[1773064438408,11.38118541,85.08,85.041,2.6808526]
[1773064438605,11.38118541,85.06,85.024,2.6808526]
[1773064439014,11.38118541,85.08,85.041,2.6808526]
[1773064439401,11.38118541,85.08,85.05,11.38118541]
[1773064439713,11.38118541,85.09,85.051,2.6808526]
[1773064439922,11.75240042,85.089,85.053,2.6808526]
[1773064440096,11.75240042,85.089,85.052,11.75751305]
[1773064440097,11.38118541,85.1,85.071,2.6808526]
[1773064440296,41.11117636,85.135,85.071,2.6808526]
[1773064440297,11.38118541,85.11,85.071,2.6808526]
[1773064440504,2.57843091,85.123,85.071,2.6808526]
[1773064440708,11.38118541,85.11,85.071,2.6808526]
[1773064440903,11.38118541,85.11,85.054,0.28432314]
[1773064440904,11.38118541,85.11,85.081,2.6808526]
[1773064441109,11.38118541,85.1,85.067,2.6808526]
[1773064441313,11.38118541,85.11,85.071,2.6808526]
[1773064441621,11.38118541,85.1,85.061,2.6808526]
[1773064442006,11.7510194,85.099,85.062,11.75613082]
[1773064442507,11.38118541,85.09,85.062,11.75613082]
[1773064442706,13.95961632,85.08,85.038,2.6808526]
[1773064442914,11.38118541,85.07,85.038,2.6808526]
[1773064443149,11.38118541,85.08,85.041,2.53208149]
[1773064443420,11.38118541,85.08,85.051,2.53208149]
[1773064443719,11.38118541,85.07,85.038,2.53208149]
[1773064444019,23.1348897,85.08,85.043,2.53208149]
[1773064444200,11.38118541,85.08,85.051,2.53208149]
[1773064444400,11.38118541,85.1,85.061,2.53208149]
[1773064444640,11.38118541,85.1,85.071,2.53208149]
[1773064444922,11.7510194,85.099,85.071,2.53208149]
[1773064445507,0.14216157,85.123,85.042,41.15613461]
[1773064445508,2.56530887,85.162,85.091,2.53208149]
[1773064445708,2.56530887,85.139,85.1,11.38118541]
[1773064445911,2.56530887,85.129,85.09,11.38118541]
[1773064446110,11.74825832,85.119,85.081,11.75350548]
[1773064446317,11.38118541,85.1,85.067,2.53208149]
[1773064446705,41.11890412,85.119,85.054,0.28432314]
[1773064446706,11.38118541,85.11,85.072,2.53208149]
[1773064446902,2.56530887,85.12,85.071,11.75477325]
[1773064446903,2.70747044,85.143,85.091,2.53208149]
[1773064447108,11.38118541,85.13,85.091,2.53208149]
[1773064447324,11.38118541,85.12,85.091,2.53208149]
[1773064447830,2.56530887,85.138,85.074,2.53208149]
[1773064448003,29.36236684,85.143,85.075,11.75433441]
[1773064448004,11.38118541,85.1,85.075,11.75433441]
[1773064448202,11.74963869,85.109,85.075,11.75433441]
[1773064448823,13.94649428,85.11,85.081,2.53208149]
[1773064448824,11.38118541,85.11,85.081,2.53208149]
[1773064449122,23.13069238,85.11,85.081,2.53208149]
[1773064449318,11.38118541,85.1,85.07,2.53208149]
[1773064449512,11.38118541,85.1,85.06,11.38118541]
[1773064449824,11.38118541,85.1,85.061,2.53208149]
[1773064450412,11.38118541,85.09,85.062,11.75613082]
[1773064450605,2.56530887,85.098,85.062,11.75613082]
[1773064451015,23.13213175,85.1,85.07,11.38118541]
[1773064451319,23.13213175,85.1,85.063,2.53208149]
[1773064451513,2.56530887,85.099,85.06,11.38118541]
[1773064451905,2.56530887,85.099,85.061,11.75626903]
[1773064452517,46.98904368,85.127,85.061,11.75626903]
[1773064452518,2.56530887,85.139,85.081,2.53208149]
[1773064452715,2.56530887,85.139,85.09,11.38118541]
[1773064452716,2.56530887,85.119,85.09,11.38118541]
[1773064453407,11.38118541,85.12,85.08,11.38118541]
[1773064453603,2.56530887,85.124,85.09,11.38118541]
[1773064453824,11.38118541,85.12,85.09,11.38118541]
[1773064454014,11.38118541,85.14,85.101,2.53208149]
[1773064454209,11.38118541,85.14,85.064,0.28432314]
[1773064454210,11.74482999,85.144,85.12,11.38118541]
[1773064454526,2.56530887,85.17,85.131,2.53208149]
[1773064454717,70.33214519,85.31,85.121,11.74798228]
[1773064454718,2.56530887,85.189,85.16,11.38118541]
[1773064455031,41.07788366,85.204,85.14,11.38118541]
[1773064455032,2.56530887,85.179,85.14,11.38118541]
[1773064455228,2.56530887,85.179,85.121,43.65001948]
[1773064455437,2.56530887,85.179,85.14,11.38118541]
[1773064455613,2.56530887,85.2,85.15,11.38118541]
[1773064455812,11.38118541,85.19,85.15,11.38118541]
[1773064456215,11.38118541,85.19,85.141,2.53208149]
[1773064456216,2.56530887,85.189,85.16,11.38118541]
[1773064456419,2.56530887,85.179,85.14,11.38118541]
[1773064456626,41.08752817,85.184,85.129,2.53208149]
[1773064456627,11.38118541,85.17,85.13,11.38118541]
[1773064456830,41.08752817,85.184,85.15,11.38118541]
[1773064457127,11.8799396,85.195,85.161,2.53208149]
[1773064457315,11.73777803,85.195,85.161,2.53208149]
[1773064457626,41.08222312,85.195,85.161,2.53208149]
[1773064457838,41.08222312,85.195,85.125,41.1158716]
[1773064457839,11.73777803,85.195,85.18,11.38118541]
[1773064458040,11.73777803,85.195,85.17,11.38118541]
[1773064458214,2.56530887,85.189,85.146,2.53208149]
[1773064458526,2.56530887,85.177,85.14,11.38118541]
[1773064458726,11.74012068,85.178,85.16,11.38118541]
[1773064458935,11.73874254,85.188,85.17,11.38118541]
[1773064459128,11.73813465,85.193,85.17,11.38118541]
[1773064459312,2.56530887,85.197,85.17,11.38118541]
[1773064459512,2.56530887,85.197,85.16,11.38118541]
[1773064460126,2.84963201,85.196,85.16,11.38118541]
[1773064460326,2.84963201,85.196,85.14,41.10869895]
[1773064460327,2.56530887,85.189,85.15,11.38118541]
[1773064460521,2.56530887,85.189,85.145,2.53208149]
[1773064460522,2.56530887,85.179,85.14,11.38118541]
[1773064460828,11.73874254,85.188,85.161,2.53208149]
[1773064461036,11.73736472,85.198,85.17,11.38118541]
[1773064461223,41.08077653,85.198,85.17,11.38118541]
[1773064461424,29.33996404,85.209,85.18,11.38118541]
[1773064461732,29.33996404,85.209,85.17,2.53208149]
[1773064461733,29.33996404,85.209,85.17,13.9132669]
[1773064462032,2.56530887,85.208,85.17,13.9132669]
[1773064462529,29.33996404,85.209,85.181,2.53208149]
[1773064462837,29.33996404,85.209,85.144,0.28432314]
[1773064462838,11.38118541,85.21,85.17,11.38118541]
[1773064463133,41.07065324,85.219,85.18,11.38118541]
[1773064463134,2.84963201,85.216,85.18,11.38118541]
[1773064463707,41.07065324,85.219,85.181,2.53208149]
[1773064463912,41.07065324,85.219,85.191,2.53208149]
[1773064464113,2.56530887,85.207,85.009,12.55767207]
[1773064464317,2.56530887,85.169,85.13,11.38118541]
[1773064464714,11.74149915,85.168,85.14,11.38118541]
[1773064465135,11.74149915,85.168,85.101,3.69383402]
[1773064465136,2.56530887,85.167,85.13,11.38118541]
[1773064465339,2.56530887,85.167,85.14,11.38118541]
[1773064465525,2.56530887,85.167,85.13,11.38118541]
[1773064465727,2.56530887,85.159,85.12,11.38118541]
[1773064466040,2.56530887,85.159,85.12,23.12930571]
[1773064466340,2.56530887,85.149,85.11,11.38118541]
[1773064466837,2.56530887,85.157,85.121,11.74798228]
[1773064467034,2.56530887,85.157,85.082,47.01325652]
[1773064467035,2.56530887,85.149,85.103,2.53208149]
[1773064467234,2.56530887,85.149,85.111,2.53208149]
[1773064467423,41.1000728,85.158,85.13,11.38118541]
[1773064467424,2.56530887,85.157,85.13,11.38118541]
[1773064468146,2.56530887,85.157,85.121,2.53208149]
[1773064468336,2.56530887,85.149,85.11,11.38118541]
[1773064468636,2.56530887,85.139,85.102,2.53208149]
[1773064468841,11.38118541,85.14,85.104,2.53208149]
[1773064468842,2.56530887,85.137,85.104,2.53208149]
[1773064469226,2.56530887,85.159,85.121,2.53208149]
[1773064469442,2.56530887,85.129,85.078,2.53208149]
[1773064469645,2.56530887,85.129,85.09,11.38118541]
[1773064469845,11.38118541,85.14,85.111,2.53208149]
[1773064470136,2.56530887,85.139,85.1,11.38118541]
[1773064470337,2.56530887,85.139,85.074,0.14216157]
[1773064470338,2.56530887,85.129,85.09,11.38118541]
[1773064470536,0.28432314,85.153,85.09,11.38118541]
[1773064470537,13.94649428,85.12,85.09,11.38118541]
[1773064470749,11.74687826,85.129,85.1,11.38118541]
[1773064470922,2.56530887,85.128,85.093,2.53208149]
[1773064472238,2.56530887,85.128,85.09,11.38118541]
[1773064472539,2.56530887,85.119,85.082,2.53208149]
[1773064472744,41.11407392,85.129,85.071,2.53208149]
[1773064472745,2.56530887,85.109,85.071,2.53208149]
[1773064472940,2.56530887,85.099,85.06,13.9132669]
[1773064473246,2.56530887,85.099,85.07,11.38118541]
[1773064474143,11.74977675,85.108,85.081,2.60677081]
[1773064474325,2.68408551,85.107,85.07,11.38118541]
[1773064474639,11.38118541,85.12,85.087,2.60677081]
[1773064475031,11.74762025,85.124,85.091,2.60677081]
[1773064475232,2.68408551,85.123,85.091,2.60677081]
[1773064475429,2.68408551,85.119,85.09,11.38118541]
[1773064476346,2.68408551,85.119,85.051,3.69383402]
[1773064476347,2.68408551,85.109,85.071,2.60677081]
[1773064476548,2.68408551,85.119,85.08,13.98795622]
[1773064476845,2.68408551,85.109,85.08,11.38118541]
[1773064477050,29.36788562,85.127,85.054,0.14216157]
[1773064477051,11.74825832,85.119,85.09,11.38118541]
[1773064477562,11.74605039,85.135,85.11,11.38118541]
[1773064477725,2.68408551,85.134,85.101,2.60677081]
[1773064477930,11.74475618,85.145,85.111,2.60677081]
[1773064478934,11.74475618,85.145,85.12,11.38118541]
[1773064479139,2.68408551,85.148,85.111,14.35601025]
[1773064479841,2.68408551,85.148,85.12,11.38118541]
[1773064480042,11.74411913,85.149,85.12,13.98795622]
[1773064480230,2.68408551,85.159,85.13,11.38118541]
[1773064481043,2.68408551,85.157,85.12,11.38118541]
[1773064481237,2.68408551,85.155,85.12,11.38118541]
[1773064481534,2.68408551,85.149,85.11,11.38118541]
[1773064483049,2.68408551,85.149,85.111,2.60677081]
[1773064483050,41.10489969,85.148,85.111,2.60677081]
[1773064483436,41.10489969,85.148,85.12,11.38118541]
[1773064483853,11.38118541,85.14,85.079,2.60677081]
[1773064484152,41.10489969,85.148,85.111,2.60677081]
[1773064484335,11.74425705,85.148,85.12,11.38118541]
[1773064484536,11.74425705,85.148,85.121,2.60677081]
[1773064484732,41.10489969,85.148,85.121,2.60677081]
[1773064484937,41.10489969,85.148,85.12,11.38118541]
[1773064485340,2.79857225,85.139,85.1,11.38118541]
[1773064485662,41.10489969,85.148,85.091,11.75212419]
[1773064485663,2.79857225,85.147,85.111,2.70628871]
[1773064486166,2.79857225,85.147,85.11,11.38118541]
[1773064487140,11.38118541,85.13,85.091,14.4584129]
[1773064487356,2.79857225,85.129,85.1,11.38118541]
[1773064487743,2.79857225,85.129,85.091,14.4584129]
[1773064488261,2.79857225,85.129,85.091,11.75212419]
[1773064488456,2.79857225,85.129,85.09,14.08747412]
[1773064489165,41.11455689,85.128,85.072,29.38656659]
[1773064489355,2.79857225,85.119,85.08,11.38118541]
[1773064489540,2.79857225,85.109,85.071,14.46107374]
[1773064490056,2.79857225,85.107,85.061,2.70628871]
[1773064490256,2.79857225,85.089,85.05,11.38118541]
[1773064490639,2.79857225,85.089,85.06,11.38118541]
[1773064490861,2.79857225,85.089,85.05,11.38118541]
[1773064491257,2.79857225,85.087,85.06,11.38118541]
[1773064491458,2.79857225,85.087,85.051,2.70628871]
[1773064492260,2.79857225,85.087,85.021,3.69383402]
[1773064492261,2.79857225,85.079,85.034,2.70628871]
[1773064492463,43.93245716,85.088,85.051,2.70628871]
[1773064492663,2.79857225,85.087,85.06,11.38118541]
[1773064493181,41.12931045,85.098,85.07,11.38118541]
[1773064493564,43.9278827,85.098,85.07,11.38118541]
[1773064493761,43.9278827,85.098,85.061,2.70628871]
[1773064493944,2.79857225,85.097,85.07,11.38118541]
[1773064495250,11.75143367,85.096,85.07,11.38118541]
[1773064495449,11.74991481,85.107,85.081,2.70628871]
[1773064496738,11.74991481,85.107,85.09,11.38118541]
[1773064497362,11.74853437,85.117,85.09,11.38118541]
[1773064497542,11.74853437,85.117,85.081,14.45967626]
[1773064497742,11.74853437,85.117,85.082,2.70628871]
[1773064497948,2.79857225,85.116,85.082,2.70628871]
[1773064499656,11.74881043,85.115,85.084,2.70628871]
[1773064500365,41.12083651,85.115,85.084,2.70628871]
[1773064500588,41.12083651,85.115,85.08,11.36607394]
[1773064500589,2.79857225,85.114,85.08,11.36607394]
[1773064500952,2.79857225,85.109,85.074,2.70628871]
[1773064501148,41.12083651,85.115,85.021,2.70628871]
[1773064501149,11.36607394,85.08,85.021,2.70628871]
[1773064501350,11.36607394,85.08,85.041,2.70628871]
[1773064501351,2.79857225,85.079,85.041,2.70628871]
[1773064501572,0.28432314,85.093,85.031,2.70628871]
[1773064501573,2.79857225,85.069,85.031,2.70628871]
[1773064501778,2.79857225,85.067,85.04,11.36607394]
[1773064502275,2.79857225,85.067,85.02,0.1]
[1773064502464,2.79857225,85.067,85.02,11.46607394]
[1773064502671,41.14355574,85.068,85.041,2.70628871]
[1773064502847,11.75530164,85.068,85.041,2.70628871]
[1773064503047,11.75530164,85.068,85.05,11.36607394]
[1773064503262,11.75530164,85.068,85.041,2.70628871]
[1773064503977,2.86026762,85.069,85.03,14.1204788]
[1773064504374,2.86026762,85.069,85.031,2.75440486]
[1773064505471,29.38515548,85.077,85.041,2.75440486]
[1773064505472,2.86026762,85.076,85.041,2.75440486]
[1773064505771,2.86026762,85.076,85.04,11.36607394]
[1773064505972,0.28432314,85.093,85.014,0.28432314]
[1773064505973,11.75433441,85.075,85.042,11.7588956]
[1773064506278,2.86026762,85.069,85.035,2.75440486]
[1773064506457,2.86026762,85.069,85.03,11.36607394]
[1773064506772,0.14216157,85.083,85.032,2.75440486]
[1773064506773,14.22634156,85.06,85.032,2.75440486]
[1773064506952,2.86026762,85.059,85.022,2.75440486]
[1773064508069,44.00866047,85.058,85.022,2.75440486]
[1773064508467,41.14839285,85.058,85.023,11.76152335]
[1773064508778,3.14459076,85.057,85.02,11.46607394]
[1773064509078,2.86026762,85.049,85.02,0.1]
[1773064509373,2.86026762,85.049,85.02,11.46607394]
[1773064509752,2.86026762,85.047,85.02,0.1]
[1773064509973,2.86026762,85.029,84.989,2.75440486]
[1773064510181,2.86026762,85.029,84.96,0.1]
[1773064510182,2.86026762,85.029,84.991,2.75440486]
[1773064511175,2.86026762,85.029,85.0,11.36607394]
[1773064511473,2.86026762,85.044,85.011,2.75440486]
[1773064512055,41.15565066,85.043,85.012,2.75440486]
[1773064512259,11.75875733,85.043,85.02,11.36607394]
[1773064512679,0.28432314,85.063,85.031,2.75440486]
[1773064512680,29.39006626,85.063,85.031,2.75440486]
[1773064512977,11.75571621,85.065,85.04,11.36607394]
[1773064513182,11.75571621,85.065,85.041,2.75440486]
[1773064513379,11.75433441,85.075,85.051,2.75440486]
[1773064513591,2.86026762,85.074,85.04,11.36607394]
[1773064513877,11.75433441,85.075,85.05,14.1204788]
[1773064514088,2.86026762,85.083,85.051,2.75440486]
[1773064514089,11.75336733,85.082,85.051,2.75440486]
[1773064514264,41.13678567,85.082,85.051,2.75440486]
[1773064515159,2.86026762,85.094,85.06,14.1204788]
[1773064515374,2.86026762,85.089,85.05,11.36607394]
[1773064515571,11.36607394,85.09,85.041,2.75440486]
[1773064515572,2.86026762,85.087,85.041,2.75440486]
[1773064515767,2.86026762,85.079,85.04,11.36607394]
[1773064515971,2.86026762,85.079,85.041,2.75440486]
[1773064516172,41.13871976,85.078,85.05,11.36607394]
[1773064516369,41.13871976,85.078,85.051,2.75440486]
[1773064516565,0.14216157,85.088,85.06,11.36607394]
[1773064516566,11.75267667,85.087,85.06,11.36607394]
[1773064516879,41.13436835,85.087,85.06,11.36607394]
[1773064517076,41.13436835,85.087,85.051,2.75440486]
[1773064517077,2.86026762,85.086,85.051,2.75440486]
[1773064517280,2.86026762,85.086,85.06,11.36607394]
[1773064518385,11.74922104,85.113,85.081,2.75440486]
[1773064518686,11.74922104,85.113,85.09,10.77830202]
[1773064519078,3.69383402,85.147,85.054,0.28432314]
[1773064519079,2.86026762,85.136,85.101,2.75440486]
[1773064519466,2.86026762,85.129,85.09,11.36607394]
[1773064519672,2.86026762,85.129,85.1,11.36607394]
[1773064519873,2.86026762,85.139,85.101,2.75440486]
[1773064520066,2.86026762,85.139,85.11,14.1204788]
[1773064520261,41.10972773,85.138,85.11,14.1204788]
[1773064520467,2.86026762,85.137,85.11,11.36607394]
[1773064520884,2.86026762,85.137,85.1,11.36607394]
[1773064521271,2.86026762,85.137,85.069,2.75440486]
[1773064521272,2.86026762,85.119,85.069,2.75440486]
[1773064521471,3.00242919,85.128,85.091,2.75440486]
[1773064521684,0.14216157,85.127,85.091,2.75440486]
[1773064521990,2.86026762,85.119,85.081,2.75440486]
[1773064522189,2.86026762,85.117,85.081,2.75440486]
[1773064522496,11.74839634,85.118,85.091,2.75440486]
[1773064522670,2.86026762,85.117,85.09,11.36607394]
[1773064523194,2.86026762,85.117,85.082,2.75440486]
[1773064523384,11.74660229,85.131,85.091,2.75440486]
[1773064523586,2.86026762,85.13,85.1,14.1204788]
[1773064523975,2.86026762,85.129,85.09,11.36607394]
[1773064524290,2.86026762,85.127,85.09,11.36607394]
[1773064524491,2.86026762,85.127,85.09,14.1204788]
[1773064524699,11.74509575,85.142,85.12,11.36607394]
[1773064524901,11.74509575,85.142,85.111,2.75440486]
[1773064525075,11.74509575,85.142,85.12,11.36607394]
[1773064525277,11.74384329,85.151,85.13,11.36607394]
[1773064525899,11.74384329,85.151,85.121,2.75440486]
[1773064526087,11.74310728,85.157,85.13,11.36607394]
[1773064526286,11.74149915,85.168,85.14,11.36607394]
[1773064526496,11.74149915,85.168,85.141,2.75440486]
[1773064526700,2.86026762,85.167,85.128,2.75440486]
[1773064527001,2.86026762,85.167,85.13,14.1204788]
[1773064527187,2.86026762,85.159,85.12,11.36607394]
[1773064527397,2.86026762,85.159,85.121,2.75440486]
[1773064527583,41.09524703,85.168,85.14,11.36607394]
[1773064527783,43.95551465,85.168,85.14,11.36607394]
[1773064527978,11.74149915,85.168,85.15,11.36607394]
[1773064528180,0.2,85.21,85.16,11.36607394]
[1773064528181,11.73901814,85.186,85.16,11.36607394]
[1773064528593,11.73901814,85.186,85.124,0.28432314]
[1773064528594,14.42634156,85.21,85.171,2.75440486]
[1773064528806,14.42634156,85.21,85.161,11.74246427]
[1773064528807,11.73584949,85.209,85.19,11.36607394]
[1773064529191,2.86026762,85.208,85.169,2.75440486]
[1773064529391,11.56607394,85.21,85.161,11.74246427]
[1773064529392,0.2,85.21,85.19,11.36607394]
[1773064529599,0.2,85.22,85.201,2.75440486]
[1773064529790,0.2,85.22,85.2,11.36607394]
[1773064529992,11.73447235,85.219,85.2,14.1204788]
[1773064530314,0.2,85.22,85.178,0.28432314]
[1773064530489,11.73447235,85.219,85.19,11.36607394]
[1773064530813,2.86026762,85.218,85.2,11.36607394]
[1773064531114,0.2,85.22,85.201,2.75440486]
[1773064531287,0.2,85.22,85.21,11.36607394]
[1773064531492,11.73447235,85.219,85.2,11.36607394]
[1773064531685,11.73447235,85.219,85.181,2.75440486]
[1773064531686,2.86026762,85.218,85.181,2.75440486]
[1773064532002,0.2,85.22,85.173,0.28432314]
[1773064532003,0.2,85.22,85.21,11.36607394]
[1773064532385,46.88371058,85.318,85.213,0.28432314]
[1773064532687,46.88371058,85.318,85.211,105.6201664]
[1773064532688,11.72597748,85.281,85.26,11.36607394]
[1773064532890,2.86026762,85.297,85.26,11.36607394]
[1773064533103,2.89464168,85.278,85.24,11.36607394]
[1773064533302,2.89464168,85.269,85.24,11.36607394]
[1773064533484,0.28432314,85.278,85.24,14.12796291]
[1773064533680,2.89464168,85.278,85.241,2.76188897]
[1773064533981,11.36607394,85.26,85.23,11.36607394]
[1773064534204,14.26071562,85.25,85.21,14.12796291]
[1773064534392,11.73048048,85.248,85.23,11.36607394]
[1773064534594,41.05668168,85.248,85.221,2.76188897]
[1773064534799,2.89464168,85.247,85.21,14.12796291]
[1773064535100,2.89464168,85.247,85.191,33.03961051]
[1773064535101,2.89464168,85.247,85.22,11.36607394]
[1773064535309,11.73048048,85.248,85.221,2.76188897]
[1773064535505,11.7291046,85.258,85.231,2.76188897]
[1773064536282,2.89464168,85.268,85.231,2.76188897]
[1773064536488,2.89464168,85.249,85.21,11.36607394]
[1773064536685,11.36607394,85.24,85.21,11.36607394]
[1773064536892,2.89464168,85.229,85.19,11.36607394]
[1773064537102,11.36607394,85.22,85.19,11.36607394]
[1773064537304,11.36607394,85.21,85.18,11.36607394]
[1773064537503,11.36607394,85.21,85.17,11.36607394]
[1773064537705,11.36607394,85.21,85.17,23.10725308]
[1773064537895,2.89464168,85.209,85.17,11.36607394]
[1773064538091,2.89464168,85.209,85.18,11.36607394]
[1773064538404,2.89464168,85.209,85.055,11.36607394]
[1773064538405,2.89464168,85.199,85.162,2.76188897]
[1773064538607,2.89464168,85.199,85.17,11.36607394]
[1773064538807,5.95161984,85.2,85.166,2.76188897]
[1773064539114,11.73598723,85.208,85.181,2.76188897]
[1773064539411,41.0759553,85.208,85.171,2.76188897]
[1773064539706,46.91394867,85.263,85.161,11.74246427]
[1773064539707,11.36607394,85.24,85.2,11.36607394]
[1773064540106,11.36607394,85.24,85.21,11.36607394]
[1773064540307,0.28432314,85.239,85.2,11.36607394]
[1773064540505,11.36607394,85.22,85.18,11.36607394]
[1773064540697,2.89464168,85.219,85.19,11.36607394]
[1773064540897,2.89464168,85.219,85.18,11.36607394]
[1773064541211,2.89464168,85.229,85.191,1.11273167]
[1773064541409,2.89464168,85.229,85.2,11.36607394]
[1773064541708,11.73185668,85.238,85.22,11.36607394]
[1773064541938,43.95614006,85.238,85.21,11.36607394]
[1773064542090,2.89464168,85.237,85.2,11.36607394]
[1773064542518,14.62677364,85.236,85.21,11.36607394]
[1773064542818,2.89464168,85.219,85.18,11.36607394]
[1773064543141,2.89464168,85.209,85.173,1.13133558]
[1773064543423,11.36607394,85.21,85.171,1.14049618]
[1773064544603,11.73584949,85.209,85.173,1.14955151]
[1773064544809,2.89464168,85.199,85.161,11.74235302]
[1773064545110,41.07547323,85.209,85.17,11.36607394]
[1773064545409,41.07547323,85.209,85.171,1.14955151]
[1773064545612,11.73584949,85.209,85.18,12.52457627]
[1773064545911,11.73584949,85.209,85.181,1.15850233]
[1773064546111,11.73584949,85.209,85.18,11.36607394]
[1773064546795,41.07065324,85.219,85.182,1.16732175]
[1773064546998,2.89464168,85.218,85.182,1.16732175]
[1773064547696,43.87569869,85.219,85.18,11.36607394]
[1773064547898,2.80504545,85.218,85.18,11.36607394]
[1773064548313,11.36607394,85.21,85.173,1.18468005]
[1773064548612,2.80504545,85.218,85.18,11.36607394]
[1773064548992,58.6561001,85.243,85.154,0.28432314]
[1773064548993,2.80504545,85.239,85.2,11.36607394]
[1773064549302,2.80504545,85.239,85.181,41.08897523]
[1773064549303,2.80504545,85.249,85.22,11.36607394]
[1773064549507,2.80504545,85.269,85.23,11.36607394]
[1773064550111,11.36607394,85.26,85.23,11.36607394]
[1773064550308,2.80504545,85.259,85.22,11.36607394]
[1773064550508,2.80504545,85.259,85.23,11.36607394]
[1773064550717,2.80504545,85.269,85.23,11.36607394]
[1773064550918,2.80504545,85.267,85.211,1.21001515]
[1773064551213,2.80504545,85.239,85.2,11.36607394]
[1773064551421,11.36607394,85.23,85.196,11.73759711]
[1773064551601,2.80504545,85.239,85.2,11.36607394]
[1773064552316,2.80504545,85.263,85.23,11.36607394]
[1773064552523,11.36607394,85.26,85.22,11.36607394]
[1773064552699,2.80504545,85.259,85.22,11.36607394]
[1773064552901,41.0518661,85.258,85.22,11.36607394]
[1773064553128,2.80504545,85.257,85.22,11.36607394]
[1773064553301,41.0518661,85.258,85.2,11.36607394]
[1773064553302,11.36607394,85.24,85.2,11.36607394]
[1773064553621,2.80504545,85.239,85.201,11.73695144]
[1773064554696,2.80504545,85.249,85.21,11.36607394]
[1773064555503,2.80504545,85.247,85.21,11.36607394]
[1773064555700,2.80504545,85.24,85.21,11.36607394]
[1773064556624,11.7291046,85.258,85.221,1.25819515]
[1773064556998,11.7291046,85.258,85.23,11.36607394]
[1773064557206,2.80504545,85.257,85.221,1.25819515]
[1773064557409,2.80504545,85.257,85.23,11.36607394]
[1773064557410,11.72937975,85.256,85.23,11.36607394]
[1773064557625,41.05282912,85.256,85.222,11.73405928]
[1773064558103,43.85787457,85.256,85.222,11.73405928]
[1773064558299,3.18845207,85.28,85.223,0.28432314]
[1773064558498,2.98845207,85.278,85.25,11.36607394]
[1773064559419,11.72649131,85.277,85.251,11.73006768]
[1773064559717,0.2,85.28,85.26,11.32006912]
[1773064559924,0.2,85.28,85.27,11.32006912]
[1773064560118,0.2,85.28,85.26,11.32006912]
[1773064560511,11.7262163,85.279,85.26,11.32006912]
[1773064560716,11.7262163,85.279,85.25,11.32006912]
[1773064560909,0.17458632,85.28,85.26,11.32006912]
[1773064561117,0.2,85.29,85.27,11.32006912]
[1773064561419,0.2,85.29,85.247,87.97959772]
[1773064561420,3.00115891,85.326,85.29,11.32006912]
[1773064561623,3.00115891,85.326,85.291,11.72456648]
[1773064561803,3.00115891,85.326,85.3,11.32006912]
[1773064562000,46.86178886,85.358,85.291,11.72456648]
[1773064562001,3.00115891,85.38,85.32,11.32006912]
[1773064562199,14.32122803,85.38,85.34,11.32006912]
[1773064562427,11.71248199,85.379,85.294,3.69383402]
[1773064562626,14.7136409,85.379,85.34,11.32006912]
[1773064562819,3.00115891,85.378,85.34,11.32006912]
[1773064563520,3.00115891,85.376,85.34,11.32006912]
[1773064564033,3.00115891,85.369,85.35,11.32006912]
[1773064564211,14.32122803,85.38,85.35,11.32006912]
[1773064564408,3.00115891,85.359,85.323,11.72008688]
[1773064564622,3.00115891,85.34,85.293,0.04018483]
[1773064564824,3.00115891,85.329,85.29,11.32006912]
[1773064565024,3.00115891,85.329,85.291,11.72456648]
[1773064565524,11.71948246,85.328,85.291,11.72456648]
[1773064565727,3.00115891,85.338,85.3,11.32006912]
[1773064566324,11.71797185,85.339,85.301,0.04795167]
[1773064566509,3.00115891,85.366,85.33,11.32006912]
[1773064567519,11.32006912,85.36,85.325,11.71979631]
[1773064567835,11.71440285,85.365,85.33,11.32006912]
[1773064568211,11.32006912,85.36,85.325,11.71979631]
[1773064568408,11.32006912,85.36,85.304,0.28432314]
[1773064568409,3.00115891,85.349,85.305,11.72264228]
[1773064568613,3.00115891,85.349,85.31,11.32006912]
[1773064569416,3.00115891,85.349,85.32,11.32006912]
[1773064569620,11.71673618,85.348,85.321,11.72044397]
[1773064570217,3.00115891,85.369,85.33,11.32006912]
[1773064570534,46.83079877,85.414,85.35,11.32006912]
[1773064570535,11.7125504,85.379,85.35,11.32006912]
[1773064570830,3.00115891,85.382,85.35,11.32006912]
[1773064570831,11.71220763,85.381,85.35,11.32006912]
[1773064571036,11.71220763,85.381,85.321,11.72044397]
[1773064571037,3.00115891,85.359,85.321,11.72044397]
[1773064571234,3.00115891,85.359,85.3,0.08549674]
[1773064571450,11.32006912,85.33,85.264,0.09110302]
[1773064571618,3.00115891,85.319,85.28,11.32006912]
[1773064572242,3.00115891,85.319,85.275,0.09110302]
[1773064572535,3.00115891,85.319,85.28,11.32006912]